fUST/lending_fUST_20250729
["ID","MTS","AMOUNT","RATE_DAILY","PERIOD"]
[375965770,1753801864823,-460.0,0.0002051,2]
[375965771,1753801864832,-715.32,0.0002051,2]
[375965772,1753801864841,-541.38,0.0002051,2]
[375965773,1753801864851,-460.0,0.0002051,2]
[375965774,1753801864860,-2995.42,0.0002051,2]
[375965775,1753801864870,-2027.5,0.0002051,2]
[375965776,1753801864880,-1657.37,0.0002051,2]
[375965777,1753801864889,-460.0,0.0002051,2]
[375965778,1753801864898,-872.15,0.0002051,2]
[375965779,1753801864908,-2995.59,0.0002051,2]
[375965780,1753801864918,-551.01,0.0002051,2]
[375965781,1753801864927,-460.0,0.0002051,2]
[375965782,1753801864936,-747.4,0.0002051,2]
[375965783,1753801864946,-460.0,0.0002051,2]
[375965784,1753801864956,-2165.41,0.0002051,2]
[375965785,1753801864965,-151.0,0.00020511,2]
[375965786,1753801864975,-151.0,0.00020511,2]
[375965787,1753801864984,-153.468414,0.00020512,2]
[375965788,1753801864994,-151.0,0.00020512,2]
[375965789,1753801865004,-152.279696,0.00020512,2]
[375965790,1753801865014,-151.0,0.00020512,2]
[375965791,1753801865023,-176.861688,0.00020512,2]
[375965792,1753801865032,-151.0,0.00020512,2]
[375965793,1753801865041,-151.718611,0.00020512,2]
[375965794,1753801865053,-151.0,0.00020512,2]
[375965795,1753801865062,-435.553773,0.00020512,2]
[375965796,1753801865072,-435.553773,0.00020512,2]
[375965797,1753801865081,-151.0,0.00020512,2]
[375965798,1753801865090,-154.297647,0.00020512,2]
[375965799,1753801865099,-151.0,0.00020513,2]
[375965800,1753801865109,-363.692089,0.00020521,2]
[375965801,1753801865118,-363.692089,0.00020521,2]
[375965802,1753801865128,-151.0,0.00020521,2]
[375965803,1753801865137,-151.0,0.00020521,2]
[375965804,1753801865146,-420.0,0.00020529,2]
[375965805,1753801865155,-151.0,0.00020538,2]
[375965806,1753801865164,-151.0,0.00020538,2]
[375965807,1753801865173,-206.222699,0.00020547,2]
[375965808,1753801865182,-198.29038504,0.00020548,2]
[375965809,1753801865192,-151.0,0.00020573,2]
[375965810,1753801865201,-643.0,0.000206,2]
[375965811,1753801865210,-151.0,0.00020613,2]
[375965812,1753801865221,-426.97,0.00020614,2]
[375965813,1753801865230,-500.0,0.00020616,2]
[375965814,1753801865240,-198.0,0.00020616,2]
[375965815,1753801865250,-613.5032694,0.00020616,2]
[375965816,1753801865259,-151.0,0.00020616,2]
[375965817,1753801865268,-500.0,0.00020616,2]
[375965818,1753801865278,-151.0,0.00020616,2]
[375965819,1753801865287,-260.32078335,0.00020616,2]
[375965820,1753801865297,-151.0,0.00020616,2]
[375965821,1753801865307,-1833.60362468,0.00020624,3]
[375965822,1753801865316,-224.048,0.00020628,2]
[375965823,1753801865325,-150.0,0.00020628,2]
[375965824,1753801865335,-1680.0,0.00020629,2]
[375965825,1753801865344,-150.17,0.00020647,2]
[375965826,1753801865353,-150.884,0.00020647,2]
[375965827,1753801865363,-150.0,0.00020647,2]
[375965828,1753801865372,-250.0,0.00020647,2]
[375965829,1753801865382,-246.136,0.00020647,2]
[375965830,1753801865394,-244.179,0.00020647,2]
[375965831,1753801865404,-677.934949,0.00020666,2]
[375965832,1753801865414,-677.934949,0.00020666,2]
[375965833,1753801865424,-151.0,0.00020666,2]
[375965834,1753801865434,-151.0,0.0002067,2]
[375965835,1753801865443,-151.0,0.0002067,2]
[375965836,1753801865454,-4403.53531291,0.00020684,2]
[375965837,1753801865464,-151.0,0.00020685,2]
[375965838,1753801865477,-454.13673149,0.00020691,4]
[375965839,1753801865487,-151.0,0.000207,4]
[375965840,1753801865498,-1002.01696615,0.00020717,2]
[375965841,1753801865507,-533.85381126,0.00020718,2]
[375965842,1753801865517,-1000.0,0.00020718,2]
[375965843,1753801865527,-500.0,0.00020718,2]
[375965844,1753801865654,-508.56017954,0.00020727,2]
[375965845,1753801865664,-1000.0,0.00020727,2]
[375965846,1753801865674,-1000.0,0.00020727,2]
[375965847,1753801865684,-1000.0,0.00020727,2]
[375965848,1753801865694,-1000.0,0.00020727,2]
[375965849,1753801865704,-1000.0,0.00020727,2]
[375965850,1753801865714,-513.72045867,0.00020727,2]
[375965851,1753801865724,-501.9958024,0.00020738,2]
[375965852,1753801865733,-500.0,0.00020738,2]
[375965853,1753801865743,-500.0,0.00020738,2]
[375965854,1753801865752,-500.0,0.00020738,2]
[375965855,1753801865762,-524.23450938,0.00020781,2]
[375965856,1753801865771,-500.0,0.00020781,2]
[375965857,1753801865781,-460.0,0.00020781,2]
[375965858,1753801865790,-561.95,0.00020781,2]
[375965859,1753801865802,-633.37,0.00020781,2]
[375965860,1753801865811,-2694.22,0.00020781,2]
[375965861,1753801865821,-460.0,0.00020782,2]
[375965862,1753801865830,-460.0,0.00020782,2]
[375965863,1753801865840,-3991.18,0.00020782,2]
[375965864,1753801865850,-713.0,0.00020782,2]
[375965865,1753801865859,-3231.06,0.00020782,2]
[375965866,1753801865869,-460.0,0.00020782,2]
[375965867,1753801865878,-2167.94,0.00020782,2]
[375965868,1753801865888,-460.0,0.00020783,2]
[375965869,1753801865898,-532.83,0.00020783,2]
[375965870,1753801865907,-460.0,0.00020783,2]
[375965871,1753801865917,-460.0,0.00020783,2]
[375965872,1753801865926,-460.0,0.00020783,2]
[375965873,1753801865936,-460.0,0.00020783,2]
[375965874,1753801865945,-654.78,0.00020783,2]
[375965875,1753801865955,-1116.08,0.00020783,2]
[375965876,1753801865965,-493.64,0.00020783,2]
[375965877,1753801865975,-460.0,0.00020783,2]
[375965878,1753801865985,-707.97,0.00020783,2]
[375965879,1753801865994,-74.16768071,0.00020783,2]
[375965880,1753801866298,-460.0,0.00018832,2]
[375965881,1753801866309,-460.0,0.00018864,2]
[375965882,1753801866319,-460.0,0.00019106,2]
[375965883,1753801866330,-478.91,0.0001938,2]
[375965884,1753801866340,-151.0,0.00020068,2]
[375965885,1753801866350,-198.0,0.00020342,2]
[375965886,1753801866361,-385.83231929,0.00020783,2]
[375965887,1753801866371,-769.2,0.00020783,2]
[375965888,1753801866383,-628.38,0.00020783,2]
[375965889,1753801866401,-529.68,0.00020783,2]
[375965890,1753801866415,-1410.75,0.00020783,2]
[375965891,1753801866425,-713.27,0.00020783,2]
[375965892,1753801866435,-460.0,0.00020783,2]
[375965893,1753801866445,-151.0,0.00020784,2]
[375965894,1753801866454,-151.0,0.00020784,2]
[375965895,1753801866464,-369.078666,0.00020784,2]
[375965896,1753801866474,-369.078672,0.00020784,2]
[375965897,1753801866484,-354.077728,0.00020784,2]
[375965898,1753801866493,-354.077732,0.00020784,2]
[375965899,1753801866504,-265.046953,0.00020784,2]
[375965900,1753801866513,-265.04695,0.00020784,2]
[375965901,1753801866523,-271.663058,0.00020784,2]
[375965902,1753801866533,-271.663058,0.00020784,2]
[375965903,1753801866542,-460.0,0.00020784,2]
[375965904,1753801866556,-151.0,0.00020784,2]
[375965905,1753801866566,-197.221151,0.00020784,2]
[375965906,1753801866577,-197.221151,0.00020784,2]
[375965907,1753801866586,-462.41638643,0.00020784,2]
[375965908,1753801866595,-460.0,0.00020784,2]
[375965909,1753801866605,-460.0,0.00020784,2]
[375965910,1753801866614,-460.0,0.00020784,2]
[375965911,1753801866623,-460.0,0.00020784,2]
[375965912,1753801866633,-215.19897,0.00020784,2]
[375965913,1753801866643,-215.19897,0.00020784,2]
[375965914,1753801866651,-3476.87614787,0.00020784,2]
[375965915,1753801866663,-460.0,0.00020784,2]
[375965916,1753801866675,-304.110933,0.00020784,2]
[375965917,1753801878571,594.0,0.000182,7]
[375965919,1753802004445,4672.12218469,0.0001851,2]
[375965920,1753802246290,298.054504,0.00013699,2]
[375965921,1753802250200,5000.0,0.0001851,2]
[375965924,1753802266614,5000.0,0.0001851,2]
[375965926,1753802283055,1828.72663773,0.0001851,2]
[375965927,1753802318249,24900.0,0.00017858,2]
[375965938,1753803008014,166.891778,0.00017851,2]
[375965951,1753803032572,-338.36629192,0.00018732,2]
[375965952,1753803032581,-267.36269498,0.0001883,2]
[375966420,1753803038790,-32.63730502,0.0001883,2]
[375966421,1753803038803,-500.19746572,0.0001883,2]
[375966422,1753803038819,-699.80253428,0.0001883,2]
[375966423,1753803038828,-460.0,0.0001883,2]
[375966424,1753803038838,-460.0,0.0001883,2]
[375966425,1753803038848,-460.0,0.0001883,2]
[375966426,1753803038858,-522.20014295,0.0001883,2]
[375966427,1753803038867,-460.0,0.0001883,2]
[375966428,1753803038877,-460.0,0.0001883,2]
[375966429,1753803038887,-460.0,0.00018831,2]
[375966430,1753803038896,-460.0,0.00018831,2]
[375966431,1753803038905,-315.9733973,0.00018831,2]
[375966432,1753803038915,-460.0,0.00018831,2]
[375966433,1753803038924,-461.49402808,0.00018831,2]
[375966434,1753803038934,-460.0,0.00018831,2]
[375966435,1753803038943,-460.0,0.00018831,2]
[375966436,1753803038952,-460.0,0.00018831,2]
[375966437,1753803038962,-460.0,0.00018831,2]
[375966438,1753803038971,-460.0,0.00018831,2]
[375966439,1753803038981,-460.0,0.00018831,2]
[375966440,1753803038991,-461.41384998,0.00018831,2]
[375966441,1753803039000,-460.0,0.00018831,2]
[375966442,1753803039010,-1000.0,0.00018831,2]
[375966443,1753803039019,-460.0,0.00018831,2]
[375966444,1753803039029,-460.0,0.00018831,2]
[375966445,1753803039039,-460.0,0.00018831,2]
[375966446,1753803039050,-460.0,0.00018831,2]
[375966447,1753803039059,-460.0,0.00018831,2]
[375966448,1753803039068,-460.0,0.00018831,2]
[375966449,1753803039078,-460.0,0.00018831,2]
[375966450,1753803039088,-460.0,0.00018831,2]
[375966451,1753803039098,-2966.61,0.00018831,2]
[375966452,1753803039108,-460.0,0.00018831,2]
[375966453,1753803039117,-460.0,0.00018831,2]
[375966454,1753803039127,-460.0,0.00018831,2]
[375966455,1753803039137,-460.0,0.00018831,2]
[375966456,1753803039146,-460.0,0.00018831,2]
[375966457,1753803039156,-460.0,0.00018831,2]
[375966458,1753803039165,-460.0,0.00018831,2]
[375966459,1753803039175,-4497.16,0.00018831,2]
[375966460,1753803039184,-460.0,0.00018831,2]
[375966461,1753803039193,-2394.69,0.00018831,2]
[375966462,1753803039202,-460.0,0.00018831,2]
[375966463,1753803039211,-467.8,0.00018831,2]
[375966464,1753803039221,-168.82709816,0.00018831,2]
[375966465,1753803039230,-460.0,0.00018831,2]
[375966466,1753803039239,-460.0,0.00018831,2]
[375966467,1753803039250,-460.0,0.00018831,2]
[375966468,1753803039259,-2002.25,0.00018831,2]
[375966469,1753803039268,-460.0,0.00018831,2]
[375966470,1753803039278,-550.6326755,0.00018831,2]
[375966471,1753803039288,-1603.66,0.00018831,2]
[375966472,1753803039299,-460.0,0.00018831,2]
[375966473,1753803039309,-460.0,0.00018831,2]
[375966474,1753803039319,-460.0,0.00018832,2]
[375966475,1753803039332,-460.0,0.00018832,2]
[375966476,1753803039342,-336.84402193,0.00018832,2]
[375966477,1753803039351,-460.0,0.00018832,2]
[375966478,1753803039360,-460.0,0.00018832,2]
[375966479,1753803039370,-606.1,0.00018832,2]
[375966480,1753803039379,-613.67,0.00018832,2]
[375966481,1753803039387,-234.64048785,0.00018832,2]
[375966482,1753803039415,-225.35951215,0.00018832,2]
[375966483,1753803039425,-460.0,0.00018832,2]
[375966484,1753803039434,-460.0,0.00018832,2]
[375966485,1753803039444,-460.0,0.00018832,2]
[375966486,1753803039453,-460.0,0.00018832,2]
[375966488,1753803039462,-438.82444632,0.00018832,2]
[375966490,1753803039471,-460.0,0.00018832,2]
[375966491,1753803039480,-460.0,0.00018832,2]
[375966493,1753803039490,-460.0,0.00018832,2]
[375966495,1753803039499,-460.0,0.00018832,2]
[375966497,1753803039509,-460.0,0.00018832,2]
[375966499,1753803039520,-460.0,0.00018832,2]
[375966501,1753803039529,-461.31381413,0.00018832,2]
[375966503,1753803039539,-460.0,0.00018832,2]
[375966505,1753803039549,-462.01457102,0.00018832,2]
[375966508,1753803039559,-460.0,0.00018832,2]
[375966510,1753803039568,-460.0,0.00018832,2]
[375966512,1753803039577,-460.0,0.00018832,2]
[375966514,1753803039586,-460.0,0.00018832,2]
[375966515,1753803039595,-460.0,0.00018832,2]
[375966518,1753803039605,-460.0,0.00018832,2]
[375966520,1753803039616,-752.02,0.00018832,2]
[375966522,1753803039625,-577.19,0.00018832,2]
[375966524,1753803039635,-460.0,0.00018832,2]
[375966526,1753803039644,-460.0,0.00018832,2]
[375966528,1753803039654,-460.0,0.00018832,2]
[375966530,1753803039663,-872.23,0.00018832,2]
[375966532,1753803039672,-460.0,0.00018832,2]
[375966534,1753803039682,-460.0,0.00018832,2]
[375966536,1753803039691,-695.82,0.00018832,2]
[375966538,1753803039701,-460.0,0.00018854,2]
[375966540,1753803039711,-460.0,0.00018854,2]
[375966542,1753803039720,-460.0,0.00018854,2]
[375966544,1753803039729,-460.0,0.00018854,2]
[375966546,1753803039738,-460.0,0.00018854,2]
[375966548,1753803039747,-460.0,0.00018854,2]
[375966550,1753803039757,-460.0,0.00018854,2]
[375966552,1753803039774,-460.0,0.00018854,2]
[375966554,1753803039783,-460.0,0.00018854,2]
[375966556,1753803039793,-460.0,0.00018854,2]
[375966557,1753803039805,-500.0,0.00018854,2]
[375966559,1753803039815,-460.55535129,0.00018854,2]
[375966561,1753803039825,-460.0,0.00018854,2]
[375966563,1753803039836,-460.0,0.00018854,2]
[375966565,1753803039845,-460.0,0.00018854,2]
[375966567,1753803039855,-460.0,0.00018854,2]
[375966569,1753803039864,-306.34530189,0.00018854,2]
[375966571,1753803039874,-460.0,0.00018854,2]
[375966573,1753803039884,-460.0,0.00018854,2]
[375966575,1753803039893,-460.0,0.00018854,2]
[375966577,1753803039903,-460.0,0.00018854,2]
[375966579,1753803039913,-460.0,0.00018854,2]
[375966581,1753803039922,-460.0,0.00018854,2]
[375966583,1753803039931,-460.0,0.00018854,2]
[375966585,1753803039940,-500.0,0.00018854,2]
[375966587,1753803039950,-460.0,0.00018854,2]
[375966589,1753803039959,-460.0,0.00018854,2]
[375966592,1753803039969,-620.63,0.00018854,2]
[375966595,1753803039978,-460.0,0.00018854,2]
[375966598,1753803039987,-460.0,0.00018854,2]
[375966601,1753803039996,-460.0,0.00018854,2]
[375966604,1753803040005,-510.25,0.00018854,2]
[375966607,1753803040015,-856.22,0.00018854,2]
[375966610,1753803040024,-460.0,0.00018854,2]
[375966613,1753803040033,-460.0,0.00018854,2]
[375966616,1753803040043,-460.0,0.00018854,2]
[375966619,1753803040055,-460.0,0.00018854,2]
[375966622,1753803040064,-460.0,0.00018854,2]
[375966625,1753803040073,-498.6,0.00018854,2]
[375966628,1753803040082,-460.0,0.00018854,2]
[375966631,1753803040093,-530.98,0.00018854,2]
[375966633,1753803040102,-460.0,0.00018854,2]
[375966635,1753803040112,-460.0,0.00018854,2]
[375966637,1753803040121,-460.0,0.00018854,2]
[375966640,1753803040131,-460.0,0.00018854,2]
[375966643,1753803040141,-564.02,0.00018854,2]
[375966646,1753803040151,-460.0,0.00018854,2]
[375966649,1753803040161,-460.0,0.00018854,2]
[375966652,1753803040171,-1045.04,0.00018854,2]
[375966655,1753803040180,-460.0,0.00018854,2]
[375966658,1753803040190,-460.0,0.00018854,2]
[375966661,1753803040200,-460.0,0.00018854,2]
[375966664,1753803040209,-460.0,0.00018854,2]
[375966667,1753803040219,-460.0,0.00018854,2]
[375966670,1753803040228,-483.44,0.00018854,2]
[375966673,1753803040237,-460.0,0.00018854,2]
[375966676,1753803040247,-460.0,0.00018854,2]
[375966679,1753803040256,-460.0,0.00018854,2]
[375966682,1753803040265,-460.0,0.00018854,2]
[375966685,1753803040274,-460.0,0.00018854,2]
[375966688,1753803040284,-552.39,0.00018854,2]
[375966691,1753803040294,-460.0,0.00018854,2]
[375966694,1753803040306,-460.0,0.00018854,2]
[375966697,1753803040316,-460.0,0.00018854,2]
[375966700,1753803040325,-328.490059,0.00018854,2]
[375966703,1753803040334,-460.0,0.00018854,2]
[375966706,1753803040343,-460.0,0.00018854,2]
[375966709,1753803040352,-460.0,0.00018854,2]
[375966712,1753803040362,-460.0,0.00018854,2]
[375966715,1753803040371,-460.0,0.00018854,2]
[375966718,1753803040380,-460.0,0.00018854,2]
[375966721,1753803040389,-460.0,0.00018854,2]
[375966724,1753803040398,-460.0,0.00018854,2]
[375966727,1753803040406,-460.0,0.00018854,2]
[375966730,1753803040414,-460.0,0.00018854,2]
[375966733,1753803040424,-460.0,0.00018854,2]
[375966735,1753803040433,-460.0,0.00018855,2]
[375966738,1753803040442,-460.0,0.00018855,2]
[375966741,1753803040451,-460.0,0.00018855,2]
[375966746,1753803040463,-460.0,0.00018855,2]
[375966749,1753803040472,-460.0,0.00018855,2]
[375966752,1753803040482,-460.0,0.00018855,2]
[375966755,1753803040491,-460.0,0.00018855,2]
[375966756,1753803040500,-460.0,0.00018855,2]
[375966761,1753803040509,-460.0,0.00018855,2]
[375966763,1753803040519,-460.0,0.00018855,2]
[375966767,1753803040528,-461.8377349,0.00018855,2]
[375966770,1753803040537,-460.0,0.00018855,2]
[375966773,1753803040547,-614.85,0.00018855,2]
[375966776,1753803040560,-2346.03,0.00018855,2]
[375966779,1753803040570,-460.0,0.00018855,2]
[375966782,1753803040580,-1533.23,0.00018855,2]
[375966785,1753803040589,-460.0,0.00018861,2]
[375966788,1753803040599,-460.0,0.00018861,2]
[375966823,1753803040784,-460.0,0.00018861,2]
[375966825,1753803040794,-460.0,0.00018861,2]
[375966827,1753803040807,-460.0,0.00018861,2]
[375966829,1753803040816,-500.0,0.00018861,2]
[375966831,1753803040826,-460.0,0.00018861,2]
[375966832,1753803040835,-2175.22,0.00018861,2]
[375966833,1753803040845,-500.0,0.00018861,2]
[375966834,1753803040855,-460.0,0.00018861,2]
[375966835,1753803040865,-749.56,0.00018861,2]
[375966836,1753803040874,-808.63,0.00018861,2]
[375966837,1753803040884,-460.0,0.00018861,2]
[375966838,1753803040893,-548.34,0.00018861,2]
[375966839,1753803040903,-461.64596371,0.00018861,2]
[375966840,1753803040912,-460.0,0.00018861,2]
[375966841,1753803040922,-460.0,0.00018861,2]
[375966842,1753803040932,-555.65,0.00018861,2]
[375966843,1753803040943,-460.0,0.00018861,2]
[375966844,1753803040952,-1859.83,0.00018861,2]
[375966845,1753803040961,-460.0,0.00018861,2]
[375966846,1753803040971,-460.0,0.00018861,2]
[375966847,1753803040980,-460.0,0.00018861,2]
[375966848,1753803040990,-636.71,0.00018861,2]
[375966850,1753803040999,-460.0,0.00018861,2]
[375966852,1753803041008,-1983.29,0.00018861,2]
[375966854,1753803041017,-460.0,0.00018862,2]
[375966856,1753803041027,-460.0,0.00018862,2]
[375966858,1753803041036,-460.0,0.00018862,2]
[375966860,1753803041045,-460.0,0.00018862,2]
[375966862,1753803041057,-460.0,0.00018862,2]
[375966864,1753803041066,-460.0,0.00018862,2]
[375966866,1753803041076,-460.0,0.00018862,2]
[375966868,1753803041086,-460.0,0.00018862,2]
[375966870,1753803041095,-559.48,0.00018862,2]
[375966872,1753803041104,-460.0,0.00018862,2]
[375966874,1753803041113,-460.0,0.00018862,2]
[375966876,1753803041122,-460.0,0.00018862,2]
[375966878,1753803041132,-251.13224826,0.00018862,2]
[375966880,1753803041142,-460.0,0.00018862,2]
[375966882,1753803041151,-460.0,0.00018862,2]
[375966884,1753803041161,-460.0,0.00018862,2]
[375966886,1753803041171,-460.0,0.00018862,2]
[375966888,1753803041180,-460.0,0.00018862,2]
[375966890,1753803041189,-460.0,0.00018862,2]
[375966892,1753803041198,-460.0,0.00018862,2]
[375966894,1753803041208,-460.0,0.00018862,2]
[375966896,1753803041217,-460.0,0.00018862,2]
[375966898,1753803041227,-460.44108074,0.00018862,2]
[375966900,1753803041236,-460.0,0.00018862,2]
[375966902,1753803041245,-587.73624226,0.00018862,2]
[375966904,1753803041254,-460.0,0.00018862,2]
[375966906,1753803041263,-460.0,0.00018862,2]
[375966908,1753803041273,-460.0,0.00018862,2]
[375966910,1753803041284,-460.0,0.00018862,2]
[375966912,1753803041293,-460.0,0.00018862,2]
[375966914,1753803041305,-460.0,0.00018862,2]
[375966916,1753803041314,-460.0,0.00018862,2]
[375966918,1753803041323,-460.0,0.00018862,2]
[375966920,1753803041332,-460.0,0.00018862,2]
[375966922,1753803041342,-460.0,0.00018862,2]
[375966924,1753803041351,-460.0,0.00018862,2]
[375966926,1753803041362,-460.0,0.00018862,2]
[375966928,1753803041372,-461.56317054,0.00018862,2]
[375966930,1753803041382,-460.0,0.00018862,2]
[375966932,1753803041391,-460.0,0.00018862,2]
[375966934,1753803041400,-460.0,0.00018862,2]
[375966936,1753803041409,-460.0,0.00018862,2]
[375966938,1753803041419,-460.0,0.00018862,2]
[375966940,1753803041428,-460.0,0.00018862,2]
[375966942,1753803041438,-460.0,0.00018862,2]
[375966944,1753803041447,-460.0,0.00018862,2]
[375966946,1753803041456,-460.0,0.00018862,2]
[375966948,1753803041466,-460.0,0.00018862,2]
[375966950,1753803041476,-349.18182283,0.00018862,2]
[375966952,1753803041485,-460.0,0.00018862,2]
[375966954,1753803041495,-460.0,0.00018862,2]
[375966956,1753803041504,-317.04793065,0.00018862,2]
[375966958,1753803041514,-449.22559505,0.00018862,2]
[375966960,1753803041523,-460.0,0.00018862,2]
[375966962,1753803041532,-460.0,0.00018862,2]
[375966964,1753803041542,-233.52211575,0.00018862,2]
[375966966,1753803041552,-460.0,0.00018862,2]
[375966968,1753803041561,-413.58247837,0.00018862,2]
[375966970,1753803041571,-460.0,0.00018862,2]
[375966972,1753803041580,-460.0,0.00018862,2]
[375966974,1753803041589,-460.0,0.00018862,2]
[375966976,1753803041599,-460.0,0.00018862,2]
[375966978,1753803041608,-460.0,0.00018862,2]
[375966980,1753803041618,-460.0,0.00018862,2]
[375966982,1753803041627,-460.0,0.00018862,2]
[375966984,1753803041636,-463.32812883,0.00018862,2]
[375966986,1753803041645,-446.69090615,0.00018862,2]
[375966988,1753803041655,-460.0,0.00018862,2]
[375966990,1753803041664,-462.56611854,0.00018862,2]
[375966992,1753803041674,-460.0,0.00018862,2]
[375966994,1753803041684,-460.0,0.00018862,2]
[375966996,1753803041693,-460.0,0.00018862,2]
[375966998,1753803041703,-460.0,0.00018862,2]
[375967000,1753803041713,-460.0,0.00018862,2]
[375967002,1753803041723,-460.0,0.00018862,2]
[375967004,1753803041732,-460.0,0.00018862,2]
[375967006,1753803041742,-460.0,0.00018862,2]
[375967008,1753803041752,-460.0,0.00018862,2]
[375967010,1753803041765,-460.0,0.00018863,2]
[375967012,1753803041774,-680.41,0.00018863,2]
[375967014,1753803041784,-460.0,0.00018864,2]
[375967016,1753803041793,-460.0,0.00018864,2]
[375967018,1753803041807,-460.0,0.00018864,2]
[375967020,1753803041816,-460.0,0.00018864,2]
[375967022,1753803041825,-460.0,0.00018864,2]
[375967024,1753803041835,-461.05549782,0.00018864,2]
[375967026,1753803041845,-500.0,0.00018864,2]
[375967028,1753803041854,-500.0,0.00018864,2]
[375967030,1753803041864,-460.0,0.00018864,2]
[375967032,1753803041873,-673.28,0.00018864,2]
[375967034,1753803041882,-460.0,0.00018864,2]
[375967036,1753803041891,-460.0,0.00018864,2]
[375967038,1753803041901,-460.0,0.00018865,2]
[375967040,1753803041910,-460.0,0.00018865,2]
[375967042,1753803041919,-463.27219842,0.00018865,2]
[375967044,1753803041929,-460.0,0.00018865,2]
[375967046,1753803041938,-460.0,0.00018865,2]
[375967048,1753803041948,-460.0,0.00018865,2]
[375967050,1753803041957,-510.26187731,0.00018865,2]
[375967052,1753803041966,-460.0,0.00018865,2]
[375967054,1753803041975,-500.0,0.00018865,2]
[375967056,1753803041984,-500.0,0.00018865,2]
[375967058,1753803041994,-500.0,0.00018865,2]
[375967060,1753803042003,-460.0,0.00018865,2]
[375967062,1753803042012,-460.0,0.00018865,2]
[375967064,1753803042021,-460.0,0.00018865,2]
[375967066,1753803042031,-460.0,0.00018865,2]
[375967068,1753803042040,-460.0,0.00018865,2]
[375967070,1753803042049,-460.0,0.00018865,2]
[375967072,1753803042061,-460.0,0.00018865,2]
[375967074,1753803042070,-430.36690742,0.00018865,2]
[375967076,1753803042079,-460.0,0.00018865,2]
[375967078,1753803042088,-460.0,0.00018865,2]
[375967080,1753803042097,-276.91248185,0.00018865,2]
[375967082,1753803042106,-460.0,0.00018865,2]
[375967084,1753803042116,-460.0,0.00018865,2]
[375967086,1753803042125,-460.0,0.00018865,2]
[375967088,1753803042134,-460.0,0.00018865,2]
[375967090,1753803042144,-460.0,0.00018865,2]
[375967092,1753803042153,-460.0,0.00018865,2]
[375967094,1753803042163,-460.0,0.00018865,2]
[375967096,1753803042172,-460.0,0.00018865,2]
[375967098,1753803042181,-460.0,0.00018865,2]
[375967100,1753803042190,-460.0,0.00018865,2]
[375967102,1753803042200,-254.26108596,0.00018865,2]
[375967104,1753803042209,-460.0,0.00018865,2]
[375967106,1753803042218,-460.0,0.00018865,2]
[375967108,1753803042226,-500.0,0.00018865,2]
[375967110,1753803042236,-460.0,0.00018865,2]
[375967112,1753803042246,-460.0,0.00018865,2]
[375967114,1753803042255,-460.0,0.00018865,2]
[375967116,1753803042264,-460.0,0.00018865,2]
[375967118,1753803042273,-266.17914285,0.00018865,2]